{"text_format":"3","workbook":"xlsx","n_sheets":2,"sheets":["list","data"],"not_rendered":{"external_links":1},"read":"whole","date_system":"1900"}

{"sheet":"list","index":0,"n_rows":46,"n_cols":17,"rows_kept":46}
["№","СНИЛС","Фамлия","Имя","Отчество","Пол","Дата рождения","Участник с ОВЗ","Класс","Класс участия","Балл","Макс. Балл","Статус","Призер МЭ прошлого года","Учитель","Место работы учителя","Направление, вид практики  по технологии"]
[1,2,3,4,5,6,7,8,9,10,11,12,13,14,15,16,17]
[1,"17758927947","Абызова","Ксения","Олеговна","Ж","09.07.2013","нет",4,4,33,60,"Участник","нет","Хусаинова Э.А",{"$f":"[1]list!P4","v":"МБОУ \"КСОШ№2\" НМР РТ"}]
[2,17792378833,"Зайцева","Анита","Александровна","Ж","2013-08-01","нет",4,4,48,60,"Победитель","нет","Гараева М.А.",{"$f":"[1]list!P5","v":"МБОУ \"КСОШ№2\" НМР РТ"}]
[3,17815143982,"Заболонский","Юрий","Сергеевич","М","2013-08-25","нет",4,4,25,60,"участник","нет","Гараева М.А.",{"$f":"[1]list!P6","v":"МБОУ \"КСОШ№2\" НМР РТ"}]
[4,17541664785,"Брюхачева","Милана","АлександровнаЖ","Ж","2013-01-23","нет",4,4,30,60,"Участник","нет","Хусаинова Э.А",{"$f":"[1]list!P7","v":"МБОУ \"КСОШ№2\" НМР РТ"}]
[5,17729670519,"Марчина","Ника","Евгеньевна","Ж","2013-04-24","нет",4,4,33,60,"Призер","нет","Хусаинова Э.А",{"$f":"[1]list!P8","v":"МБОУ \"КСОШ№2\" НМР РТ"}]
[6,17441527263,"Краюхин","Дмитрий","Евгеньевич","М","2012-10-08","нет",5,5,34,76,"Участник","нет","Хайруллина Л.А.",{"$f":"[1]list!P9","v":"МБОУ \"КСОШ№2\" НМР РТ"}]
[7,17286275600,"Харина","Марина","Николаевна","Ж","2012-06-02","нет",5,5,40,76,"Призер","нет","Хусаинова Э.А",{"$f":"[1]list!P10","v":"МБОУ \"КСОШ№2\" НМР РТ"}]
[8,17302200609,"Окунев","Александр","Олегович","М","2012-07-27","нет",5,5,24,76,"Участник","нет","Хусаинова Э.А",{"$f":"[1]list!P11","v":"МБОУ \"КСОШ№2\" НМР РТ"}]
[9,17307663775,"Юлдашева","Элина","Фарходовна","Ж","2012-07-14","нет",5,5,40,76,"Победитель","нет","Хусаинова Э.А","МБОУ \"КСОШ №2\"НМР РТ"]
[10,16626821383,"Косс","Виктория","Викторовна","Ж","2011-05-18","нет",6,6,23,66,"Призер","нет","Хусаинова Э.А",{"$f":"P4","v":"МБОУ \"КСОШ№2\" НМР РТ"}]
[11,16823847602,"Равилова","Регина","Рафаэлевна","Ж","2011-09-03","нет",6,6,26,66,"Участник","нет","Хайруллина Л.А.","МБОУ \"КСОШ№2\" НМР РТ"]
[12,16717208676,"Уразайкина","Яна","Николаевна","Ж","2011-06-20","нет",6,6,32,66,"Участник","нет","Хайруллина Л.А.","МБОУ \"КСОШ№2\" НМР РТ"]
[13,16302024506,"Останин","Дмитрий","Васильевич","М","2010-10-29","нет",6,6,30,66,"Участник","нет","Хусаинова Э.А","МБОУ \"КСОШ№2\" НМР РТ"]
[14,16823852595,"Пономарев ","Глеб","Евгеньевич","М","2011-09-10","нет",6,6,23,66,"Участник","нет","Хусаинова Э.А","МБОУ \"КСОШ№2\" НМР РТ"]
[15,16865187115,"Шляхтина","Ирина","Сергеевна","Ж","2011-10-04","нет",6,6,38,66,"Призер","нет","Хусаинова Э.А","МБОУ \"КСОШ№2\" НМР РТ"]
[16,15808799622,"Гильфанова","Ландыш","Ильдусовна","Ж","2009-12-31","нет",7,7,30,75,"Участник","нет","Хайруллина Л.А.","МБОУ \"КСОШ№2\" НМР РТ"]
[17,16056636263,"Тябина","Илона","Алексеевна","Ж","2010-05-05","нет",7,7,34,75,"Участник","нет","Хайруллина Л.А.","МБОУ \"КСОШ №2\"НМР РТ"]
[18,17831269087,"Ярцева","Ирина","Александровна","Ж","2010-01-10","нет",7,7,28,75,"Участник","нет","Хайруллина Л.А.","МБОУ \"КСОШ№2\" НМР РТ"]
[19,18428299105,"Ислямова","Зарина","Марселевна","М","2010-04-29","нет",7,7,36,75,"Участник","нет","Хайруллина Л.А.","МБОУ \"КСОШ№2\" НМР РТ"]
[20,18428299105,"Лутфуллина","Луиза","Шамилевна","Ж","2009-11-27","нет",7,7,29,75,"Участник","нет","Хайруллина Л.А.","МБОУ \"КСОШ№2\" НМР РТ"]
[21,15787973345,"Габидуллин","Тимур","Рафикович","М","2008-11-19","нет",8,8,24,80,"Участник","нет","Хайруллина Л.А.","МБОУ \"КСОШ№2\" НМР РТ"]
[22,15698243211,"Умарова ","Амалия","Маратовна","М","2009-11-13","нет",8,8,39,80,"Участник","нет","Хайруллина Л.А.","МБОУ \"КСОШ№2\" НМР РТ"]
[23,15992362614,"Хабибулин  "," Радмир","Гарифулаевич","М","2008-12-28","нет",8,8,32,80,"Участник","нет","Ибрагимова З.К","МБОУ \"КСОШ№2\" НМР РТ"]
[24,17834080284,"Рыдаев ","Данил","Максимович","М","2008-12-24","нет",8,8,28,80,"Участник","нет","Ибрагимова З.К","МБОУ \"КСОШ№2\" НМР РТ"]
[25,16287545701,"Запивахин","Александр","Александрович","М","2009-07-26","нет",8,8,17,80,"Участник","нет","Ибрагимова З.К","МБОУ \"КСОШ №2\"НМР РТ"]
[26,15521768567,"Кострулина","Арина","Сергеевна","Ж","2009-03-21","нет",8,8,19,80,"Участник","нет","Ибрагимова З.К","МБОУ \"КСОШ№2\" НМР РТ"]
[27,15693372702,"Казакова","Анастасия","Евгеньевна","Ж","2009-04-08","нет",8,8,21,80,"Участник","нет","Хайруллина Л.А.","МБОУ \"КСОШ№2\" НМР РТ"]
[28,15594139492,"Елизарова","Виктория","Максимовна","Ж","2009-08-04","нет",8,8,38,80,"Участник","нет","Хайруллина Л.А.","МБОУ \"КСОШ№2\" НМР РТ"]
[29,17896250228,"Чадулина ","Александра","Ивановна","Ж","2009-02-04","нет",8,8,45,80,"Призер","нет","Хайруллина Л.А.","МБОУ \"КСОШ№2\" НМР РТ"]
[30,15503312825,"Моторина","Каролина","Денисовна","Ж","2009-05-21","нет",8,8,38,80,"Участник","нет","Хайруллина Л.А.","МБОУ \"КСОШ№2\" НМР РТ"]
[31,15390120942,"Лысов ","Олег","Александрович","М","2009-02-23","нет",8,8,39,80,"Участник","нет","Хайруллина Л.А.","МБОУ \"КСОШ№2\" НМР РТ"]
[32,15591672394,"Дормидонтова","Кира","Сергеевна","Ж","2009-08-11","нет",8,8,62,80,"Победитель","нет","Хайруллина Л.А.","МБОУ \"КСОШ№2\" НМР РТ"]
[33,15530775161,"Заболонская","Ксения","Сергеевна","Ж","2009-06-21","нет",8,8,34,80,"Участник","нет","Хайруллина Л.А.","МБОУ \"КСОШ №2\"НМР РТ"]
[34,17047258769,"Зеленова","Аделина","Витальевна","Ж","2008-12-12","нет",8,8,34,80,"Участник","нет","Хайруллина Л.А.","МБОУ \"КСОШ№2\" НМР РТ"]
[35,14937589421,"Косс","Маргарита","Сергеевна","Ж","2008-01-14","нет",9,9,28,88,"Участник","нет","Хайруллина Л.А.","МБОУ \"КСОШ№2\" НМР РТ"]
[36,14953966922,"Пахомова","Мария","Александровна","Ж","2007-11-17","нет",9,9,20,88,"Участник","нет","Хайруллина Л.А.","МБОУ \"КСОШ№2\" НМР РТ"]
[37,16967074321,"Костицын","Виталий","Анатольевич","М","2008-09-27","нет",9,9,21,88,"Участник","нет","Хайруллина Л.А.","МБОУ \"КСОШ№2\" НМР РТ"]
[38,16865193211,"Журавлёв","Роман","Максимович","М","2008-08-25","нет",9,9,42,88,"Участник","нет","Хайруллина Л.А.","МБОУ \"КСОШ№2\" НМР РТ"]
[39,15169587599,"Рысаев","Илья","Рафаэлевич","М","2007-12-16","нет",9,9,75,88,"Победитель","нет","Хайруллина Л.А.","МБОУ \"КСОШ№2\" НМР РТ"]
[40,15449424479,"Кручинина","Владлена","Николаевна","Ж","2008-02-16","нет",9,9,30,88,"Участник","нет","Хайруллина Л.А.","МБОУ \"КСОШ№2\" НМР РТ"]
[41,17571470689,"Чугуев","Даниил","Тимофеевич","М","2008-07-18","нет",9,9,29,88,"Участник","нет","Хайруллина Л.А.","МБОУ \"КСОШ №2\"НМР РТ"]
[42,16016076126,"Крымов","Владислав","Артемович","М","2008-05-13","нет",9,9,29,88,"Участник","нет","Хайруллина Л.А.","МБОУ \"КСОШ№2\" НМР РТ"]
[43,15323851752,"Реброва","Анна","Ивановна","Ж","2008-08-26","нет",9,9,32,88,"Участник","нет","Хайруллина Л.А.","МБОУ \"КСОШ№2\" НМР РТ"]
[44,16016078332,"Николашина","Дарья","Сергеевна","Ж","2008-08-23","нет",9,9,50,88,"Призер","нет","Хайруллина Л.А.","МБОУ \"КСОШ№2\" НМР РТ"]

{"sheet":"data","index":1,"n_rows":25,"n_cols":3,"rows_kept":25,"hidden":true}
[]
["Техника, технология и техническое творчество .  Ручная обработка древесины"]
["Техника, технология и техническое творчество .  Ручная обработка металла"]
["Техника, технология и техническое творчество .  Механическая обработка древесины"]
["Техника, технология и техническое творчество .  Механическая обработка металла"]
["Техника, технология и техническое творчество .  Электротехника"]
["Техника, технология и техническое творчество .  Робототехника"]
["Техника, технология и техническое творчество .  3d - моделирование и печать"]
["Техника, технология и техническое творчество .  Обработка материалов на лазерно-гравировальной машине"]
["Техника, технология и техническое творчество .  Промышленный дизайн"]
["Культура дома, дизайн и технологии .  Обработка швейного изделия или узла + моделирование швейных изделий"]
["Культура дома, дизайн и технологии .  Обработка швейного изделия или узла + моделирование швейных изделий с использованием графических редакторов"]
["Культура дома, дизайн и технологии .  Обработка швейного изделия или узла на швейно-вышивальном оборудовании + моделирование швейных изделий"]
["Культура дома, дизайн и технологии .  Обработка швейного изделия или узла на швейно-вышивальном оборудовании + моделирование швейных изделий с использованием графических редакторов"]
["Культура дома, дизайн и технологии .  Робототехника"]
["Культура дома, дизайн и технологии .  3d - моделирование и печать"]
["Культура дома, дизайн и технологии .  Обработка материалов на лазерно-гравировальной машине"]
["Культура дома, дизайн и технологии .  Промышленный дизайн"]
["Роботехника .  "]
["Информационная безопасность ."]
[]
[]
["участник"]
["призер",null,"да"]
["победитель"]